fUST/lending_fUST_20250527
["ID","MTS","AMOUNT","RATE_DAILY","PERIOD"]
[362441097,1748295032234,-152.0,0.00021946,2]
[362441098,1748295032243,-287.0,0.00021961,2]
[362441099,1748295032254,-300.0,0.00021961,2]
[362441100,1748295032264,-21972.82958084,0.00021962,2]
[362441101,1748295032274,-151.0,0.00021987,2]
[362441102,1748295032283,-21984.38615066,0.00022,2]
[362441103,1748295032293,-156.587,0.00022042,2]
[362441104,1748295032303,-162.380719,0.00022097,2]
[362441105,1748295032313,-168.3888056,0.00022152,2]
[362441106,1748295032322,-174.61919141,0.00022207,2]
[362441107,1748295032332,-500.0,0.0002226,2]
[362441108,1748295032341,-181.08010149,0.00022262,2]
[362441109,1748295032351,-187.78006525,0.00022317,2]
[362441110,1748295032361,-320.31830166,0.00022372,2]
[362441111,1748295032370,-192.0,0.0002244,2]
[362441112,1748295032380,-178.10514063,0.00022532,2]
[362441113,1748295032390,-329.689,0.00022557,2]
[362441114,1748295032400,-500.0,0.00022584,2]
[362441115,1748295032409,-500.0,0.00022584,2]
[362441116,1748295032419,-273.89328675,0.00022584,2]
[362441117,1748295032430,-500.0,0.00022584,2]
[362441118,1748295032439,-5000.0,0.00022585,2]
[362441119,1748295032449,-160.0,0.00022883,2]
[362441120,1748295032459,-229.15402412,0.00022883,2]
[362441121,1748295032468,-894.64583333,0.00022883,2]
[362441122,1748295032478,-160.0,0.00022888,2]
[362441123,1748295032488,-212.59253735,0.00022888,2]
[362441124,1748295032502,-501.05012543,0.000229,8]
[362441125,1748295032512,-199.0,0.00022945,2]
[362441126,1748295032521,-565.0,0.00022968,2]
[362441127,1748295032531,-501.05012532,0.00022969,8]
[362441128,1748295032545,-327.63449797,0.00023,2]
[362441129,1748295032555,-215.6471318,0.00023018,2]
[362441130,1748295032564,-420.0,0.00023023,2]
[362441131,1748295032574,-501.05012532,0.00023038,8]
[362441132,1748295032584,-500.0,0.00023081,2]
[362441133,1748295032594,-207.4,0.00023106,2]
[362441134,1748295032604,-151.0,0.00023106,2]
[362441135,1748295032614,-151.0,0.00023106,2]
[362441136,1748295032624,-151.0,0.00023106,2]
[362441137,1748295032634,-151.0,0.00023106,2]
[362441138,1748295032644,-151.0,0.00023106,2]
[362441139,1748295032654,-151.0,0.00023106,2]
[362441140,1748295032664,-151.0,0.00023106,2]
[362441141,1748295032674,-151.0,0.00023106,2]
[362441142,1748295032684,-151.0,0.00023106,2]
[362441143,1748295032693,-151.0,0.00023106,2]
[362441144,1748295032703,-151.0,0.00023106,2]
[362441145,1748295032712,-151.0,0.00023106,2]
[362441146,1748295032723,-151.0,0.00023106,2]
[362441147,1748295032733,-151.0,0.00023106,2]
[362441148,1748295032742,-151.0,0.00023106,2]
[362441149,1748295032950,-501.05012532,0.00023107,8]
[362441150,1748295032963,-501.05012532,0.00023176,8]
[362441151,1748295032973,-198.1,0.00023215,2]
[362441152,1748295032982,-198.1,0.00023215,2]
[362441153,1748295032991,-151.92719648,0.00023227,2]
[362441154,1748295033001,-151.32294275,0.00023227,2]
[362441155,1748295033010,-158.60730553,0.00023227,2]
[362441156,1748295033020,-288.06439291,0.00023227,2]
[362441157,1748295033029,-172.73679644,0.00023233,2]
[362441158,1748295033039,-501.05012532,0.00023245,8]
[362441159,1748295033049,-501.05012532,0.00023314,9]
[362441160,1748295033059,-600.0,0.00023355,2]
[362441161,1748295033068,-500.0,0.00023356,2]
[362441162,1748295033078,-501.05012532,0.00023383,9]
[362441163,1748295033088,-364.86,0.00023435,2]
[362441164,1748295033097,-501.05012532,0.00023452,9]
[362441165,1748295033109,-152.80813166,0.00023452,9]
[362441166,1748295033119,-159.62933508,0.00023452,9]
[362441167,1748295033129,-200.15363509,0.00023452,9]
[362441168,1748295033138,-501.05012532,0.00023521,9]
[362441169,1748295033148,-172.73679644,0.00023534,2]
[362441170,1748295033157,-501.05012532,0.0002359,9]
[362441171,1748295033167,-501.05012532,0.00023659,9]
[362441172,1748295033178,-501.05012532,0.00023728,9]
[362441173,1748295033190,-501.05012532,0.00023797,9]
[362441174,1748295033200,-160.49780129,0.00023863,2]
[362441175,1748295033210,-172.73679644,0.00023863,2]
[362441176,1748295033219,-172.73679644,0.00023863,2]
[362441177,1748295033229,-420.0,0.00023865,2]
[362441178,1748295033239,-501.05012532,0.00023866,10]
[362441179,1748295033249,-602.69917037,0.00023876,2]
[362441180,1748295033260,-43949.45743331,0.000239,2]
[362441181,1748295033270,-257.8100361,0.00023918,2]
[362441182,1748295033280,-153.0,0.00023918,2]
[362441183,1748295033290,-501.05012532,0.00023934,10]
[362441184,1748295033300,-547.04,0.00023963,3]
[362441185,1748295033310,-500.0,0.00023973,2]
[362441186,1748295033320,-161.39477442,0.00023973,2]
[362441187,1748295033330,-210.09160765,0.00023973,2]
[362441188,1748295033340,-500.0,0.00023973,2]
[362441189,1748295033350,-500.0,0.00023973,2]
[362441190,1748295033361,-500.0,0.00023973,2]
[362441191,1748295033371,-2843.9,0.00023973,2]
[362441192,1748295033382,-2843.9,0.00023973,2]
[362441193,1748295033392,-2843.9,0.00023973,2]
[362441194,1748295033402,-2843.9,0.00023973,2]
[362441195,1748295033412,-2843.8,0.00023973,2]
[362441196,1748295033423,-500.0,0.00023973,2]
[362441197,1748295033433,-500.0,0.00023973,2]
[362441198,1748295033444,-500.0,0.00023973,2]
[362441199,1748295033454,-500.0,0.00023973,2]
[362441200,1748295033464,-500.0,0.00023973,2]
[362441201,1748295033474,-500.0,0.00023973,2]
[362441202,1748295033484,-160.0,0.00023999,2]
[362441203,1748295033493,-4696.42790502,0.00024,2]
[362441204,1748295033503,-4599.19132821,0.00024,3]
[362441205,1748295033513,-584732.45864663,0.00024,30]
[362441206,1748295033797,-500.0,0.00022584,2]
[362441207,1748295033809,-500.0,0.00022584,2]
[362441208,1748295033819,-500.0,0.00022584,2]
[362441209,1748295033829,-500.0,0.00022584,2]
[362441210,1748295033839,-345.65412798,0.00022584,2]
[362441211,1748295033849,-500.0,0.00022584,2]
[362441212,1748295033859,-210690.55009493,0.00024,30]
[362441213,1748295033868,-250.0,0.00024,2]
[362441214,1748295033878,-151.0,0.00024,7]
[362441215,1748295033888,-151.0,0.00024,7]
[362441216,1748295033898,-151.0,0.00024,7]
[362441217,1748295033908,-151.0,0.00024,7]
[362441218,1748295033918,-151.0,0.00024,7]
[362441219,1748295033927,-151.0,0.00024,7]
[362441220,1748295033937,-281.166257,0.00024,7]
[362441221,1748295033947,-151.0,0.00024,7]
[362441222,1748295033970,-12654.40314616,0.00024,30]
[362441223,1748295033981,-733.570995,0.00024,7]
[362441224,1748295033991,-733.570995,0.00024,7]
[362441225,1748295034001,-334.678918,0.00024,7]
[362441226,1748295034011,-334.678918,0.00024,7]
[362441227,1748295034021,-151.0,0.00024,7]
[362441228,1748295034030,-151.0,0.00024,7]
[362441229,1748295034040,-151.0,0.00024,7]
[362441230,1748295034050,-151.0,0.00024,7]
[362441231,1748295034060,-151.0,0.00024,7]
[362441232,1748295034070,-285.626415,0.00024,7]
[362441233,1748295034080,-2496.991038,0.00024,2]
[362441234,1748295034089,-2496.991038,0.00024,2]
[362441235,1748295034099,-151.0,0.00024,7]
[362441236,1748295034109,-447.123244,0.00024,7]
[362441237,1748295034119,-447.123244,0.00024,7]
[362441238,1748295034130,-151.0,0.00024,7]
[362441239,1748295034139,-151.0,0.00024,7]
[362441240,1748295034149,-151.0,0.00024,7]
[362441241,1748295034159,-151.0,0.00024,7]
[362441242,1748295034169,-152.430027,0.00024,7]
[362441243,1748295034179,-151.0,0.00024,7]
[362441244,1748295034192,-151.0,0.00024,7]
[362441245,1748295034202,-151.0,0.00024,7]
[362441246,1748295034212,-501.05012532,0.00024003,10]
[362441247,1748295034223,-501.05012532,0.00024072,10]
[362441248,1748295034233,-501.05012532,0.00024141,10]
[362441249,1748295034243,-579.47253,0.00024163,3]
[362441250,1748295034254,-172.73679644,0.00024164,2]
[362441251,1748295034266,-501.05012532,0.0002421,10]
[362441252,1748295034277,-501.05012532,0.00024279,10]
[362441253,1748295034287,-165.96162361,0.0002431,2]
[362441254,1748295034297,-501.05012532,0.00024348,11]
[362441255,1748295034307,-359.616966,0.00024375,2]
[362441256,1748295034317,-151142.2643943,0.0002441,2]
[362441257,1748295034327,-151.0,0.0002441,7]
[362441258,1748295034337,-733.570995,0.0002441,7]
[362441259,1748295034347,-733.570995,0.0002441,7]
[362441260,1748295034356,-334.678918,0.0002441,7]
[362441261,1748295034367,-334.678918,0.0002441,7]
[362441262,1748295034377,-300.644161,0.0002441,7]
[362441263,1748295034387,-151.786049,0.0002441,7]
[362441264,1748295034396,-151.0,0.0002441,7]
[362441265,1748295034406,-151.0,0.0002441,7]
[362441266,1748295034416,-2496.991038,0.0002441,2]
[362441267,1748295034425,-2496.991038,0.0002441,2]
[362441268,1748295034435,-151.0,0.0002441,7]
[362441269,1748295034446,-447.123244,0.0002441,7]
[362441270,1748295034456,-447.123244,0.0002441,7]
[362441271,1748295034466,-151.0,0.0002441,7]
[362441272,1748295034475,-151.0,0.0002441,7]
[362441273,1748295034486,-215.628058,0.0002441,7]
[362441274,1748295034495,-151.0,0.0002441,7]
[362441275,1748295034505,-151.0,0.0002441,7]
[362441276,1748295034514,-235.907992,0.0002441,7]
[362441277,1748295034524,-151.0,0.0002441,7]
[362441278,1748295034534,-501.05012532,0.00024417,11]
[362441279,1748295034544,-153.0,0.00024466,2]
[362441280,1748295034555,-215.0738,0.00024475,2]
[362441281,1748295034566,-501.05012532,0.00024486,11]
[362441282,1748295034576,-1000.0,0.00024521,2]
[362441283,1748295034586,-500.0,0.00024521,2]
[362441284,1748295034597,-652.84442803,0.00024522,2]
[362441285,1748295034607,-960.0,0.00024543,2]
[362441286,1748295034616,-2234.0,0.00024543,2]
[362441287,1748295034626,-707.0,0.00024543,2]
[362441288,1748295034636,-404.0,0.00024543,2]
[362441289,1748295034648,-501.05012532,0.00024555,11]
[362441290,1748295034659,-8728.89139863,0.00024557,2]
[362441291,1748295034670,-501.05012532,0.00024624,11]
[362441292,1748295034680,-298.804,0.00024656,2]
[362441293,1748295034690,-451.3213603,0.00024657,3]
[362441294,1748295034700,-502.19397008,0.00024657,3]
[362441295,1748295034711,-506.1688868,0.00024657,3]
[362441296,1748295034721,-400.82147598,0.00024657,3]
[362441297,1748295034730,-430.0,0.00024657,3]
[362441298,1748295034741,-430.0,0.00024657,3]
[362441299,1748295034751,-430.0,0.00024657,3]
[362441300,1748295034762,-401.85261119,0.00024657,3]
[362441301,1748295034773,-430.0,0.00024657,3]
[362441302,1748295034783,-400.0,0.00024657,3]
[362441303,1748295034793,-549.41424153,0.00024657,3]
[362441304,1748295034804,-430.0,0.00024657,3]
[362441305,1748295034813,-430.0,0.00024657,3]
[362441306,1748295034824,-430.0,0.00024657,3]
[362441307,1748295034833,-430.0,0.00024657,3]
[362441308,1748295034843,-430.0,0.00024657,3]
[362441309,1748295034854,-430.0,0.00024657,3]
[362441310,1748295034864,-430.0,0.00024657,3]
[362441311,1748295034874,-430.0,0.00024657,3]
[362441312,1748295034884,-430.0,0.00024657,3]
[362441313,1748295034895,-430.0,0.00024657,3]
[362441314,1748295034904,-430.0,0.00024657,3]
[362441315,1748295034915,-431.18444022,0.00024657,3]
[362441316,1748295034925,-430.0,0.00024657,3]
[362441317,1748295034935,-430.0,0.00024657,3]
[362441318,1748295034945,-430.0,0.00024657,3]
[362441319,1748295034956,-430.0,0.00024657,3]
[362441320,1748295034966,-425.28642561,0.00024657,3]
[362441321,1748295034976,-430.0,0.00024657,3]
[362441322,1748295034986,-430.0,0.00024657,3]
[362441323,1748295034996,-430.0,0.00024657,3]
[362441324,1748295035006,-430.71441826,0.00024657,3]
[362441325,1748295035016,-430.0,0.00024657,3]
[362441326,1748295035031,-430.0,0.00024657,3]
[362441327,1748295035041,-430.0,0.00024657,3]
[362441328,1748295035050,-181.60548251,0.00024657,3]
[362441329,1748295035060,-430.0,0.00024657,3]
[362441330,1748295035070,-401.63623618,0.00024657,3]
[362441331,1748295035079,-430.0,0.00024657,3]
[362441332,1748295035249,-430.0,0.00024657,3]
[362441333,1748295035261,-430.0,0.00024657,3]
[362441334,1748295035271,-497.23957926,0.00024657,3]
[362441335,1748295035280,-430.0,0.00024657,3]
[362441336,1748295035290,-430.0,0.00024657,3]
[362441337,1748295035300,-430.0,0.00024657,3]
[362441338,1748295035309,-430.0,0.00024657,3]
[362441339,1748295035319,-430.84346304,0.00024657,3]
[362441340,1748295035332,-430.0,0.00024657,3]
[362441341,1748295035342,-430.0,0.00024657,3]
[362441342,1748295035353,-553.81,0.00024657,3]
[362441343,1748295035364,-430.0,0.00024657,3]
[362441344,1748295035375,-430.0,0.00024657,3]
[362441345,1748295035386,-430.0,0.00024657,3]
[362441346,1748295035397,-430.0,0.00024657,3]
[362441347,1748295035407,-430.0,0.00024657,3]
[362441348,1748295035419,-430.0,0.00024657,3]
[362441349,1748295035430,-430.0,0.00024657,3]
[362441350,1748295035443,-403.55035648,0.00024657,3]
[362441351,1748295035453,-401.2355385,0.00024657,3]
[362441352,1748295035466,-1000.0,0.00024657,3]
[362441353,1748295035477,-430.0,0.00024657,3]
[362441354,1748295035488,-430.0,0.00024657,3]
[362441355,1748295035498,-450.0,0.00024657,3]
[362441356,1748295035509,-430.0,0.00024657,3]
[362441357,1748295035520,-430.0,0.00024657,3]
[362441358,1748295035529,-430.0,0.00024657,3]
[362441359,1748295035539,-430.0,0.00024657,3]
[362441360,1748295035548,-430.0,0.00024657,3]
[362441361,1748295035559,-450.0,0.00024657,3]
[362441362,1748295035569,-430.0,0.00024657,3]
[362441363,1748295035579,-404.5349143,0.00024657,3]
[362441364,1748295035588,-450.52192095,0.00024657,3]
[362441365,1748295035598,-430.0,0.00024657,3]
[362441366,1748295035608,-430.0,0.00024657,3]
[362441367,1748295035619,-430.0,0.00024657,3]
[362441368,1748295035629,-430.0,0.00024657,3]
[362441369,1748295035638,-430.0,0.00024657,3]
[362441370,1748295035647,-430.0,0.00024657,3]
[362441371,1748295035657,-430.0,0.00024657,3]
[362441372,1748295035667,-430.0,0.00024657,3]
[362441373,1748295035677,-430.0,0.00024657,3]
[362441374,1748295035687,-430.0,0.00024657,3]
[362441375,1748295035696,-430.0,0.00024657,3]
[362441376,1748295035706,-430.0,0.00024657,3]
[362441377,1748295035716,-430.0,0.00024657,3]
[362441378,1748295035726,-401.14289384,0.00024657,3]
[362441379,1748295035736,-430.0,0.00024657,3]
[362441380,1748295035746,-430.0,0.00024657,3]
[362441381,1748295035756,-158.56982998,0.00024657,3]
[362441382,1748295035766,-430.0,0.00024657,3]
[362441383,1748295035776,-430.0,0.00024657,3]
[362441384,1748295035786,-430.0,0.00024657,3]
[362441385,1748295035796,-430.0,0.00024657,3]
[362441386,1748295035806,-450.0,0.00024657,3]
[362441387,1748295035816,-454.57894625,0.00024657,3]
[362441388,1748295035826,-430.0,0.00024657,3]
[362441389,1748295035835,-430.0,0.00024657,3]
[362441390,1748295035845,-430.0,0.00024657,3]
[362441391,1748295035855,-430.0,0.00024657,3]
[362441392,1748295035864,-465.4124812,0.00024657,3]
[362441393,1748295035874,-430.0,0.00024657,3]
[362441394,1748295035884,-430.0,0.00024657,3]
[362441395,1748295035894,-430.0,0.00024657,3]
[362441396,1748295035905,-430.0,0.00024657,3]
[362441397,1748295035914,-430.0,0.00024657,3]
[362441398,1748295035924,-430.0,0.00024657,3]
[362441399,1748295035935,-430.0,0.00024657,3]
[362441400,1748295035945,-430.0,0.00024657,3]
[362441401,1748295035955,-430.0,0.00024657,3]
[362441402,1748295035966,-430.0,0.00024657,3]
[362441403,1748295035976,-430.0,0.00024657,3]
[362441404,1748295035987,-350.67184516,0.00024657,3]
[362441405,1748295035996,-430.0,0.00024657,3]
[362441406,1748295036006,-430.0,0.00024657,3]
[362441407,1748295036017,-430.0,0.00024657,3]
[362441408,1748295036027,-430.0,0.00024657,3]
[362441409,1748295036036,-430.0,0.00024657,3]
[362441410,1748295036046,-430.0,0.00024657,3]
[362441411,1748295036056,-430.0,0.00024657,3]
[362441412,1748295036066,-430.0,0.00024657,3]
[362441413,1748295036076,-400.0,0.00024657,3]
[362441414,1748295036085,-430.0,0.00024657,3]
[362441415,1748295036095,-450.0,0.00024657,3]
[362441416,1748295036105,-430.0,0.00024657,3]
[362441417,1748295036114,-400.0,0.00024657,3]
[362441418,1748295036124,-450.0,0.00024657,3]
[362441419,1748295036135,-430.0,0.00024657,3]
[362441420,1748295036144,-430.0,0.00024657,3]
[362441421,1748295036154,-430.0,0.00024657,3]
[362441422,1748295036164,-430.0,0.00024657,3]
[362441423,1748295036175,-430.0,0.00024657,3]
[362441424,1748295036187,-430.0,0.00024657,3]
[362441425,1748295036197,-430.0,0.00024657,3]
[362441426,1748295036207,-450.0,0.00024657,3]
[362441427,1748295036217,-430.0,0.00024657,3]
[362441428,1748295036228,-400.0,0.00024657,3]
[362441429,1748295036238,-151.0,0.00024657,7]
[362441430,1748295036249,-151.0,0.00024657,7]
[362441431,1748295036259,-151.0,0.00024657,7]
[362441432,1748295036271,-174.128834,0.00024657,7]
[362441433,1748295036282,-430.0,0.00024657,3]
[362441434,1748295036291,-430.0,0.00024657,3]
[362441435,1748295036301,-501.32720014,0.00024657,3]
[362441436,1748295036313,-430.0,0.00024657,3]
[362441437,1748295036323,-503.78771177,0.00024657,3]
[362441438,1748295036334,-501.27401851,0.00024657,3]
[362441439,1748295036344,-430.0,0.00024657,3]
[362441440,1748295036354,-430.0,0.00024657,3]
[362441441,1748295036363,-430.0,0.00024657,3]
[362441442,1748295036373,-430.0,0.00024657,3]
[362441443,1748295036383,-430.0,0.00024657,3]
[362441444,1748295036392,-430.0,0.00024657,3]
[362441445,1748295036402,-430.0,0.00024657,3]
[362441446,1748295036411,-430.0,0.00024657,3]
[362441447,1748295036421,-430.0,0.00024657,3]
[362441448,1748295036430,-430.0,0.00024657,3]
[362441449,1748295036439,-430.0,0.00024657,3]
[362441450,1748295036448,-430.0,0.00024657,3]
[362441451,1748295036457,-430.0,0.00024657,3]
[362441452,1748295036466,-413.47130291,0.00024657,3]
[362441453,1748295036476,-430.0,0.00024657,3]
[362441454,1748295036486,-430.0,0.00024657,3]
[362441455,1748295036495,-430.0,0.00024657,3]
[362441456,1748295036504,-400.0,0.00024657,3]
[362441457,1748295036516,-430.0,0.00024657,3]
[362441458,1748295036527,-430.0,0.00024657,3]
[362441459,1748295036537,-430.0,0.00024657,3]
[362441460,1748295036547,-151.0,0.00024657,7]
[362441461,1748295036556,-430.0,0.00024657,3]
[362441462,1748295036568,-430.0,0.00024657,3]
[362441463,1748295036581,-151.0,0.00024657,7]
[362441464,1748295036591,-430.25450667,0.00024657,3]
[362441465,1748295036601,-430.0,0.00024657,3]
[362441466,1748295036611,-430.0,0.00024657,3]
[362441467,1748295036622,-430.0,0.00024657,3]
[362441468,1748295036633,-450.0,0.00024657,3]
[362441469,1748295036642,-430.0,0.00024657,3]
[362441470,1748295036652,-430.0,0.00024657,3]
[362441471,1748295036662,-430.0,0.00024657,3]
[362441472,1748295036671,-430.0,0.00024657,3]
[362441473,1748295036680,-430.0,0.00024657,3]
[362441474,1748295036690,-430.0,0.00024657,3]
[362441475,1748295036700,-430.3769709,0.00024657,3]
[362441476,1748295036710,-430.0,0.00024657,3]
[362441477,1748295036720,-430.0,0.00024657,3]
[362441478,1748295036729,-430.0,0.00024657,3]
[362441479,1748295036739,-430.0,0.00024657,3]
[362441480,1748295036749,-430.0,0.00024657,3]
[362441481,1748295036759,-430.0,0.00024657,3]
[362441482,1748295036770,-430.0,0.00024657,3]
[362441483,1748295036782,-504.85035116,0.00024657,3]
[362441484,1748295036792,-402.29175014,0.00024657,3]
[362441485,1748295036802,-430.0,0.00024657,3]
[362441486,1748295036812,-503.07908642,0.00024657,3]
[362441487,1748295036821,-430.0,0.00024657,3]
[362441488,1748295036831,-430.0,0.00024657,3]
[362441489,1748295036841,-430.0,0.00024657,3]
[362441490,1748295036851,-430.0,0.00024657,3]
[362441491,1748295036860,-151.0,0.00024657,7]
[362441492,1748295036870,-151.0,0.00024657,7]
[362441493,1748295036880,-151.0,0.00024657,7]
[362441494,1748295036891,-151.0,0.00024657,7]
[362441495,1748295036900,-151.0,0.00024657,7]
[362441496,1748295036912,-151.0,0.00024657,7]
[362441497,1748295036921,-151.0,0.00024657,7]
[362441498,1748295036932,-226.950576,0.00024657,7]
[362441499,1748295036942,-430.0,0.00024657,3]
[362441500,1748295036952,-430.0,0.00024657,3]
[362441501,1748295036962,-430.0,0.00024657,3]
[362441502,1748295036971,-430.0,0.00024657,3]
[362441503,1748295036981,-430.0,0.00024657,3]
[362441504,1748295036991,-430.0,0.00024657,3]
[362441505,1748295037000,-430.0,0.00024657,3]
[362441506,1748295037011,-430.0,0.00024657,3]
[362441507,1748295037020,-430.0,0.00024657,3]
[362441508,1748295037030,-430.0,0.00024657,3]
[362441509,1748295037039,-430.0,0.00024657,3]
[362441510,1748295037048,-430.0,0.00024657,3]
[362441511,1748295037058,-430.0,0.00024657,3]
[362441512,1748295037068,-430.0,0.00024657,3]
[362441513,1748295037078,-430.0,0.00024657,3]
[362441514,1748295037087,-430.0,0.00024657,3]
[362441515,1748295037097,-430.0,0.00024657,3]
[362441516,1748295037107,-430.0,0.00024657,3]
[362441517,1748295037117,-430.0,0.00024657,3]
[362441518,1748295037127,-430.0,0.00024657,3]
[362441519,1748295037137,-430.0,0.00024657,3]
[362441520,1748295037147,-430.0,0.00024657,3]
[362441521,1748295037157,-363.97759682,0.00024657,3]
[362441522,1748295037167,-430.0,0.00024657,3]
[362441523,1748295037176,-430.0,0.00024657,3]
[362441524,1748295037189,-430.0,0.00024657,3]
[362441525,1748295037199,-430.0,0.00024657,3]
[362441526,1748295037208,-571.35486077,0.00024657,3]
[362441527,1748295037218,-430.0,0.00024657,3]
[362441528,1748295037229,-430.0,0.00024657,3]
[362441529,1748295037238,-159.657643,0.00024657,2]
[362441530,1748295037248,-430.0,0.00024657,3]
[362441531,1748295037257,-159.657643,0.00024657,2]
[362441532,1748295037268,-430.0,0.00024657,3]
[362441533,1748295037278,-430.0,0.00024657,3]
[362441534,1748295037288,-159.657643,0.00024657,2]
[362441535,1748295037299,-430.0,0.00024657,3]
[362441536,1748295037310,-159.657643,0.00024657,2]
[362441537,1748295037319,-529.62203708,0.00024657,3]
[362441538,1748295037329,-159.657643,0.00024657,2]
[362441539,1748295037340,-522.96218221,0.00024657,3]
[362441540,1748295037350,-159.657643,0.00024657,2]
[362441541,1748295037359,-159.657643,0.00024657,2]
[362441542,1748295037369,-159.657643,0.00024657,2]
[362441543,1748295037380,-159.657643,0.00024657,2]
[362441544,1748295037389,-159.657643,0.00024657,2]
[362441545,1748295037399,-430.0,0.00024657,3]
[362441546,1748295037409,-159.657643,0.00024657,2]
[362441554,1748295037542,-430.0,0.00024657,3]
[362441556,1748295037552,-430.0,0.00024657,3]
[362441557,1748295037562,-159.657643,0.00024657,2]
[362441559,1748295037571,-430.0,0.00024657,3]
[362441561,1748295037581,-500.0,0.00024657,3]
[362441563,1748295037590,-159.657643,0.00024657,2]
[362441565,1748295037600,-430.0,0.00024657,3]
[362441566,1748295037612,-159.657643,0.00024657,2]
[362441568,1748295037622,-510.0,0.00024657,3]
[362441569,1748295037632,-159.657643,0.00024657,2]
[362441570,1748295037642,-159.657643,0.00024657,2]
[362441571,1748295037652,-430.0,0.00024657,3]
[362441572,1748295037662,-159.657643,0.00024657,2]
[362441573,1748295037672,-430.0,0.00024657,3]
[362441574,1748295037683,-430.0,0.00024657,3]
[362441575,1748295037693,-159.657643,0.00024657,2]
[362441576,1748295037705,-430.0,0.00024657,3]
[362441577,1748295037715,-430.0,0.00024657,3]
[362441578,1748295037725,-420.0,0.00024657,3]
[362441579,1748295037735,-159.657643,0.00024657,2]
[362441580,1748295037744,-430.0,0.00024657,3]
[362441581,1748295037754,-430.0,0.00024657,3]
[362441582,1748295037764,-159.657641,0.00024657,2]
[362441583,1748295037774,-430.0,0.00024657,3]
[362441584,1748295037785,-264.02194693,0.00024657,3]
[362441585,1748295037795,-430.0,0.00024657,3]
[362441586,1748295037805,-430.0,0.00024657,3]
[362441588,1748295037815,-430.0,0.00024657,3]
[362441589,1748295037824,-430.0,0.00024657,3]
[362441590,1748295037834,-430.0,0.00024657,3]
[362441591,1748295037844,-430.0,0.00024657,3]
[362441592,1748295037854,-162.48177066,0.00024657,3]
[362441593,1748295037865,-430.0,0.00024657,3]
[362441594,1748295037875,-430.0,0.00024657,3]
[362441595,1748295037885,-430.0,0.00024657,3]
[362441596,1748295037895,-438.67606443,0.00024657,3]
[362441597,1748295037905,-430.0,0.00024657,3]
[362441598,1748295037915,-430.0,0.00024657,3]
[362441599,1748295037925,-450.0,0.00024657,3]
[362441600,1748295037936,-400.0,0.00024657,3]
[362441601,1748295037946,-457.03698808,0.00024657,3]
[362441602,1748295037956,-430.0,0.00024657,3]
[362441603,1748295037966,-430.0,0.00024657,3]
[362441604,1748295037976,-401.10725529,0.00024657,3]
[362441605,1748295037987,-430.0,0.00024657,3]
[362441606,1748295037997,-153.1782572,0.00024657,3]
[362441607,1748295038007,-430.0,0.00024657,3]
[362441608,1748295038017,-430.0,0.00024657,3]
[362441609,1748295038027,-430.0,0.00024657,3]
[362441610,1748295038037,-430.0,0.00024657,3]